Cogmind - Beta 11 X7 @@@ ROGUE MODE // 2021.08.26 @ 21:47:11 Player: kasaphescent Result: Destroyed by X-87 Electro with Compact HERF Cannon Performance ------------- Evolutions (7) 3500 Regions Visited (13) 2600 Robots Destroyed (193) 965 Value Destroyed (8232) 8232 Prototype IDs (15) 300 Alien Tech Used (0) 0 Bonus (2824) 2824 TOTAL SCORE: 18421 Bonus ------- High Alert Combat Kills 201 Follower Combat Kills 355 Met Warlord at Base 500 MAIN.C Attacked Warlord 500 Warlord Defense Kill 1516 Friendly Fire -248 Cogmind --------- Core Integrity 0/1300 Matter 420/450 Energy 64/100 System Corruption 69% Temperature Cool (0) Movement Core (300) Ox5 Location -3/Research Parts ------- > --- POWER (2) -------- (None) > --- PROPULSION (6) --- (None) > --- UTILITY (10) ----- Compact Matter Pod Machine Analyzer Advanced Visual Processing Unit Advanced Signal Interpreter Advanced Targeting Computer Hacking Suite > --- WEAPON (3) ------- Vortex Driver > --- INVENTORY (5) ---- Flexi-carbon Leg KE Penetrator Molecular Deconstructor Peak State ------------ > --- POWER ------------ Light Antimatter Reactor Light Particle Reactor > --- PROPULSION ------- Armored Medium Treads Makeshift Leg Flexi-carbon Leg Flexi-carbon Leg Myomer Leg Advanced Myomer Leg > --- UTILITY ---------- Advanced Heat Sink Large Storage Unit Machine Analyzer Advanced Visual Processing Unit Advanced Sensor Array Advanced Signal Interpreter Improved Light Armor Plating Hacking Suite Hacking Suite Long-range Tractor Beam > --- WEAPON ----------- Wave Gun Vortex Driver Thunder Hammer > --- INVENTORY -------- Advanced Heat Sink Compact Matter Pod Advanced Targeting Computer Nova Cannon Vortex Driver Vortex Driver Heavy Machine Gun Heavy Gauss Cannon Compact Tesla Bomb Launcher Molecular Deconstructor Centrium Greatsword [Rating: 115] Favorites ----------- Power Light Antimatter Reactor Engine Reinforced Ion Engine Power Core Micro Fission Core Reactor Light Antimatter Reactor Propulsion Carbon-fiber Leg Treads Light Treads Leg Carbon-fiber Leg Wheel Wheel Utility Advanced Visual Processing Unit Device Improved Heat Sink Storage Large Storage Unit Processor Advanced Visual Processing Unit Hackware Hacking Suite Protection Improved Medium Armor Plating Weapon Enhanced Autogun Energy Gun Wave Gun Energy Cannon Vortex Driver Ballistic Gun Enhanced Autogun Ballistic Cannon Improved Light Cannon Launcher Compact Tesla Bomb Launcher Special Weapon Molecular Deconstructor Impact Weapon Thunder Hammer Slashing Weapon Centrium Greatsword Piercing Weapon Enhanced Force Lance Build | -11 -10 -10 -9 -8 -7 -6 -5 -4 -4 -4 -4 -3 -3 ------- Run | Scr Mat Min Mat Mat Fac Fac Fac Fac Upp Upp War Pro Res Slots Evolved 14 | . . . 2 2 2 2 2 2 . . . . 2 Power 1 | . . . . . . . . 1 . . . . . Propulsion 4 | . . . 2 . . . . . . . . . 2 Utility 8 | . . . . 2 1 2 2 1 . . . . . Weapon 1 | . . . . . 1 . . . . . . . . Parts Attached 211 | 7 3 4 12 9 38 7 14 10 12 5 29 20 41 Power 24 | 1 1 . 1 . 2 . 2 2 1 1 4 1 8 Engine 6 | 1 1 . 1 . 2 . . 1 . . . . . Core 3 | . . . . . . . 2 1 . . . . . Reactor 15 | . . . . . . . . . 1 1 4 1 8 Propulsion 65 | 2 . 2 3 2 17 3 2 . 2 2 13 8 9 Treads 10 | . . . 3 2 3 . . . . . . 1 1 Leg 53 | 2 . 2 . . 12 3 2 . 2 2 13 7 8 Wheel 2 | . . . . . 2 . . . . . . . . Hover . | . . . . . . . . . . . . . . Flight . | . . . . . . . . . . . . . . Utility 53 | 2 1 1 3 5 9 2 2 2 4 2 6 7 7 Device 21 | 1 . . 1 1 2 1 1 1 1 2 4 5 1 Storage 6 | 1 . 1 . . 3 . . . . . . . 1 Processor 7 | . . . . 1 1 1 . . 1 . . 1 2 Hackware 2 | . . . . . . . . . . . . . 2 Protection 17 | . 1 . 2 3 3 . 1 1 2 . 2 1 1 Artifact . | . . . . . . . . . . . . . . Weapon 69 | 2 1 1 5 2 10 2 8 6 5 . 6 4 17 Energy Gun 5 | 1 1 1 . . . . . . . . 1 . 1 Energy Cannon 8 | . . . . . . . . . . . 1 2 5 Ballistic Gun 25 | 1 . . 1 2 7 2 4 3 3 . . . 2 Ballistic Cannon 9 | . . . 3 . . . . . 1 . 4 1 . Launcher 10 | . . . 1 . 3 . . 2 1 . . . 3 Special Weapon 2 | . . . . . . . . . . . . 1 1 Impact Weapon 6 | . . . . . . . 4 1 . . . . 1 Slashing Weapon 2 | . . . . . . . . . . . . . 2 Piercing Weapon 2 | . . . . . . . . . . . . . 2 Special Melee Weapon . | . . . . . . . . . . . . . . Unidentified Prototypes 15 | . . . 1 1 2 . 1 . . . 5 1 4 Corrupted Parts 6 | . . . . . . . . . 1 . 1 . 4 System Corruption 36 | . . . . . . . . . 6 . 1 . 29 Parts Lost 95 | . 3 3 1 2 9 . 1 2 12 5 13 13 31 Power 16 | . 1 . 1 . . . . . 1 1 3 2 7 Propulsion 31 | . . 2 . . 5 . . . 2 3 3 4 12 Utility 27 | . 1 . . 2 2 . . 2 4 . 5 4 7 Weapon 21 | . 1 1 . . 2 . 1 . 5 1 2 3 5 Highest Loss Streak 17 | . 2 2 1 1 2 . 1 1 10 3 5 7 17 Average Slot Usage (%) 91 | . 92 98 100 99 97 93 94 94 81 92 89 74 89 Engine 4 | . 13 14 11 9 7 6 2 5 1 . . . 1 Reactor 3 | . . . . . . . . . 1 8 9 7 6 Treads 7 | . . . 24 35 15 . . . . . . 1 3 Leg 18 | . 28 27 19 . 11 26 23 21 21 20 20 17 21 Device 10 | . 8 . . 1 6 13 16 21 11 14 18 6 12 Storage 6 | . 14 14 11 9 7 6 5 5 5 5 5 5 4 Processor 14 | . . . . 9 15 15 17 15 16 21 21 22 14 Hackware 1 | . . . . . . . . . . . . . 8 Protection 6 | . . 14 11 16 7 6 6 5 4 5 4 5 3 Energy Gun 1 | . 12 15 3 . . . . . . . . . 2 Ballistic Gun 9 | . 14 12 . 5 21 18 16 13 13 9 3 . 1 Ballistic Cannon 3 | . . . 18 12 . . . . 1 5 5 4 . Naked Turns . | . . . . . . . . . . . . . . Heaviest Build 96 | 15 16 16 26 31 68 51 57 75 67 78 96 92 77 Greatest Support 145 | 20 20 20 60 82 82 70 70 70 70 70 98 93 145 Greatest Overweight (x) 3 | 1 . 1 2 . 3 . . 1 . 1 1 2 1 Average Overweight (x) . | . . . . . . . . . . . . . . Largest Inventory Capacity 20 | 8 8 8 8 8 20 15 15 15 15 15 15 15 15 Average Capacity 13 | 7 8 8 8 8 14 15 15 15 15 15 15 15 14 Most Carried 17 | 6 8 8 8 8 17 15 15 13 13 8 15 15 15 Average Carried 9 | 5 7 7 7 7 9 14 13 11 7 6 10 11 11 Final Capacity 15 | 8 8 8 8 8 15 15 15 15 15 15 15 15 5 Final Carried 15 | 6 6 7 8 8 15 15 14 11 7 7 12 10 4 Class Distribution -------------------- 24% | Scavenger-Mutant 15% | Scavenger-Gunner 15% | Mutant 13% | Scavenger-Tank 9% | Derelict-Assassin 9% | Tank 4% | Scavenger-Skirmisher 3% | Derelict-Skirmisher Dominant Class ---------------- Mutant | -10/Materials Mutant | -10/Mines Scavenger-Mutant | -9/Materials Mutant | -8/Materials Scavenger-Tank | -7/Factory Tank | -6/Factory Scavenger-Skirmisher | -5/Factory Scavenger-Gunner | -4/Factory Scavenger-Gunner | -4/Upper Caves Scavenger-Gunner | -4/Upper Caves Scavenger-Mutant | -4/Warlord Scavenger-Mutant | -3/Proximity Caves Derelict-Assassin | -3/Research Resources | -11 -10 -10 -9 -8 -7 -6 -5 -4 -4 -4 -4 -3 -3 ----------- Run | Scr Mat Min Mat Mat Fac Fac Fac Fac Upp Upp War Pro Res Matter Collected 7303 | 248 193 116 440 444 1393 250 186 339 406 281 1189 970 848 Remotely 886 | 63 46 . . . . . . . . . 606 61 110 Salvage Created 8193 | 75 193 354 450 577 2266 250 253 405 670 303 481 513 1403 Parts 394 | 3 8 16 43 34 138 15 8 8 20 16 15 21 49 Haulers Intercepted 5 | . . . . 2 2 1 . . . . . . . Recyclers Shooed 6 | . . . 2 1 3 . . . . . . . . Parts Field Recycled . | . . . . . . . . . . . . . . Retrieved Matter . | . . . . . . . . . . . . . . Parts Self-Destructed 140 | . . . . . . . . . 15 15 92 18 . Prevented 6 | . . . . . . . . . 3 . 3 . . Kills | -11 -10 -10 -9 -8 -7 -6 -5 -4 -4 -4 -4 -3 -3 ------- Run | Scr Mat Min Mat Mat Fac Fac Fac Fac Upp Upp War Pro Res Combat Hostiles Destroyed 156 | . 4 4 16 13 41 3 4 6 11 8 12 17 17 Melee 5 | . . . . . . . . . . . . . 5 Guns 72 | . 4 4 1 5 31 3 4 3 9 5 . . 3 Cannons 51 | . . . 8 8 . . . . 1 3 12 17 2 AOE 22 | . . . 7 . 10 . . 3 1 . . . 1 Classes Destroyed 18 | 1 2 1 2 4 3 . . . 1 . 4 . . Worker 9 | . . . . 1 5 . . 1 . . . . 2 Builder 3 | . . . 1 . 2 . . . . . . . . Tunneler 2 | . 1 . . . 1 . . . . . . . . Hauler 5 | . . . . 2 2 1 . . . . . . . Recycler 15 | 1 . 3 3 1 5 . . 1 . . . . 1 Watcher 2 | . . . . . 1 . . . . . . . 1 Swarmer 40 | . . 2 11 4 12 . . . . 4 3 4 . Grunt 66 | . 4 2 1 4 23 2 3 2 8 4 3 4 6 Brawler 1 | . . . . . . . . . 1 . . . . Duelist 4 | . . . . 1 1 . . . 2 . . . . Protector 2 | . . . . . . . . . . . 2 . . Sentry 11 | . . . 4 3 . . 1 2 . . . 1 . Demolisher 1 | . . . . . . . . . . . 1 . . Specialist 4 | . . . . . . . . . . . 1 3 . Hunter 12 | . . . . 1 . . . 2 . . 1 2 6 Programmer 13 | . . . . . 4 1 . . . . . 3 5 Heavy 1 | . . . . . 1 . . . . . . . . Striker 1 | . . . . . . . . . . . 1 . . Packrat 1 | . . . . . . . . . 1 . . . . Bouncer 1 | . . . . . . . . . . . 1 . . Best Kill Streak 11 | 1 4 3 9 6 9 1 3 4 4 4 5 5 11 Combat Bots Only 10 | . 3 2 9 4 5 1 3 3 4 4 5 5 10 Max Kills in Single Turn 5 | 1 2 1 5 1 4 1 1 3 1 2 1 1 2 Gunslinging 1 | . 1 . . . 1 . . . . . . . . Exploded 5 | . . . 5 . 4 . . 2 1 . . . 1 Melee 1 | . . . . . . . . . . . . . 1 Uniques/NPCs Destroyed . | . . . . . . . . . . . . . . Combat | -11 -10 -10 -9 -8 -7 -6 -5 -4 -4 -4 -4 -3 -3 -------- Run | Scr Mat Min Mat Mat Fac Fac Fac Fac Upp Upp War Pro Res Damage Taken 17338 | . 525 315 401 787 1982 157 263 1104 1644 756 2164 2127 5113 Core 2844 | . 86 54 15 83 233 . 37 148 153 77 234 415 1309 Absorbed by Shields . | . . . . . . . . . . . . . . Core Remaining (%) 74 | 100 . 44 96 84 66 100 96 . . . . 10 . Volleys Fired 526 | 3 34 21 33 49 113 16 13 27 27 14 66 67 43 Largest 3 | 2 2 2 2 2 3 3 3 3 3 3 2 2 2 Hottest 200 | 70 70 90 90 78 87 76 78 78 119 119 160 200 194 Shots Fired 1051 | 6 58 42 58 86 318 48 39 65 77 40 71 95 48 Gun 727 | 6 58 42 6 32 313 48 39 60 74 27 2 . 20 Cannon 302 | . . . 50 54 . . . . 1 13 69 95 20 Launcher 22 | . . . 2 . 5 . . 5 2 . . . 8 Special . | . . . . . . . . . . . . . . Kinetic 902 | 3 34 12 50 86 313 48 39 60 75 40 69 66 7 Thermal 90 | 3 24 30 6 . . . . . . . 2 . 25 Explosive 14 | . . . 2 . 5 . . 5 2 . . . . Electromagnetic 8 | . . . . . . . . . . . . . 8 Entropic 37 | . . . . . . . . . . . . 29 8 Robot Hit Streak 38 | 2 9 17 6 15 17 14 11 37 38 5 9 6 11 Robot Miss Streak 6 | 2 3 5 2 3 6 3 5 4 5 3 3 4 2 Penetration Max 1 | . . . . . . . . . 1 1 1 . . Secondary Targets 10 | . 1 1 . . 6 1 . . 1 . . . . Max Gunslinging Chain 2 | . 1 1 . . 2 1 . . 1 . . . . Shots Hit Robots 703 | 3 46 26 32 60 196 33 26 51 51 28 48 52 51 Core Hits 350 | 2 10 13 24 25 104 13 11 25 35 20 16 23 29 Critical Kills 6 | . . . . . . 1 1 . 3 . . . 1 Critical Parts Destroyed 9 | . . . . . 1 1 . 1 5 . . . 1 Critical Strikes 46 | . . . 4 2 1 2 1 2 9 2 8 12 3 Burn 1 | . . . 1 . . . . . . . . . . Destroy 17 | . . . . . 1 2 1 2 9 . . . 2 Blast 18 | . . . 3 2 . . . . . 2 8 3 . Sunder 10 | . . . . . . . . . . . . 9 1 Melee Attacks 62 | . . . . . . . 5 4 . . . . 53 Impact 18 | . . . . . . . 5 4 . . . . 9 Slashing 17 | . . . . . . . . . . . . . 17 Piercing 27 | . . . . . . . . . . . . . 27 Sneak Attacks 3 | . . . . . . . . . . . . . 3 Combat Hostiles . | . . . . . . . . . . . . . . Follow-up Attacks . | . . . . . . . . . . . . . . Damage Inflicted 24511 | 36 600 299 1156 1114 5438 590 486 1870 1539 732 3067 3657 3927 Guns 9102 | 36 600 299 47 481 3470 590 486 961 1226 445 46 . 415 Cannons 9124 | . . . 573 633 . . . . 42 287 3021 3657 911 Explosions 4974 | . . . 536 . 1968 . . 909 271 . . . 1290 Melee 1311 | . . . . . . . . . . . . . 1311 Ramming . | . . . . . . . . . . . . . . Kinetic 15146 | 11 374 90 573 1114 3470 590 486 961 1268 732 3021 2274 182 Thermal 1316 | 25 226 209 47 . . . . 218 . . 46 . 545 Explosive 3466 | . . . 536 . 1968 . . 691 271 . . . . Electromagnetic 1290 | . . . . . . . . . . . . . 1290 Impact 150 | . . . . . . . . . . . . . 150 Slashing 964 | . . . . . . . . . . . . . 964 Piercing 197 | . . . . . . . . . . . . . 197 Entropic 1982 | . . . . . . . . . . . . 1383 599 Highest Corruption 68 | . . . . . 2 1 . . 8 8 8 6 68 Average Corruption 6 | . . . . . 1 1 . . 4 8 4 4 11 Corruption Purged . | . . . . . . . . . . . . . . Effects 104 | . . . . . 3 . . . 9 19 4 21 48 Message Errors 24 | . . . . . . . . . 2 4 1 6 11 Matter Fused 33 | . . . . . . . . . 1 8 2 7 15 Heat Flow Errors 10 | . . . . . . . . . 1 2 . 1 6 Energy Discharges 12 | . . . . . 1 . . . 1 2 . 2 6 Data Loss (minor) 10 | . . . . . 1 . . . 2 . 1 3 3 Data Loss (major) 2 | . . . . . . . . . 1 . . 1 . Misfires 4 | . . . . . . . . . 1 2 . . 1 Alerts 1 | . . . . . . . . . . . . . 1 Misdirections 1 | . . . . . . . . . . . . . 1 Weapon Failures 7 | . . . . . 1 . . . . 1 . 1 4 Overload Shots . | . . . . . . . . . . . . . . Overflow Damage 1481 | . . . 5 . 165 . . 44 . . 215 477 575 Projectiles 891 | . . . 5 . . . . . . . 215 477 194 Explosions 281 | . . . . . 165 . . 44 . . . . 72 Melee 309 | . . . . . . . . . . . . . 309 Knockbacks 50 | . . . 5 5 . . . . . 5 18 16 1 Impact 1 | . . . . . . . . . . . . . 1 Kinetic 43 | . . . 5 4 . . . . . 3 16 15 . Secondary 6 | . . . . 1 . . . . . 2 2 1 . Self-Inflicted Damage 128 | . . . . . 62 . . . 45 . . . 21 Shots 3 | . . . . . 1 . . . 1 . . . 1 Rammed . | . . . . . . . . . . . . . . Targets Rammed . | . . . . . . . . . . . . . . Kicked . | . . . . . . . . . . . . . . Crushed . | . . . . . . . . . . . . . . Highest Temperature 400 | 47 244 283 150 274 400 28 4 78 182 208 63 337 171 Average Temperature 85 | 28 98 100 50 84 99 21 3 28 36 57 16 135 59 Received Heat Transfer 2456 | . 285 90 57 216 450 90 126 45 222 133 247 240 255 Effects 5 | . . . . 2 . . . . . . . 3 . Energy Bleed 3 | . . . . . . . . . . . . 3 . Interference 2 | . . . . 2 . . . . . . . . . Siege Activations . | . . . . . . . . . . . . . . Robots Corrupted 6 | . . . . . . . . . . . . . 6 Combat Hostiles 6 | . . . . . . . . . . . . . 6 Parts Fried 12 | . . . . . . . . . 1 . . . 11 Impact Corruptions 4 | . . . . . . . . . . . 1 . 3 Robots Melted . | . . . . . . . . . . . . . . Combat Hostiles . | . . . . . . . . . . . . . . Parts Melted . | . . . . . . . . . . . . . . Heat Transferred 2265 | 74 666 511 198 . . . . 150 . . 74 . 592 Parts Sabotaged . | . . . . . . . . . . . . . . Parts Stolen . | . . . . . . . . . . . . . . Parts Stripped . | . . . . . . . . . . . . . . Power Chain Reactions . | . . . . . . . . . . . . . . Missiles Intercepted . | . . . . . . . . . . . . . . Alert | -11 -10 -10 -9 -8 -7 -6 -5 -4 -4 -4 -4 -3 -3 ------- Run | Scr Mat Min Mat Mat Fac Fac Fac Fac Upp Upp War Pro Res Peak Influence 707 | 5 88 109 465 395 707 438 355 491 . . . . 375 Initial 317 | . 3 34 . 88 158 317 214 86 . . . . 13 Average 205 | 2 35 63 180 237 313 349 222 328 . . . . 72 Maximum Alert Level 3 | . . . 2 1 3 2 1 2 . . . . 1 Low Security (%) 54 | 100 100 100 62 34 37 . 40 40 . . . . 80 Level 1 29 | . . . 27 65 24 80 59 7 . . . . 19 Level 2 15 | . . . 10 . 37 19 . 52 . . . . . Level 3 . | . . . . . 1 . . . . . . . . Level 4 . | . . . . . . . . . . . . . . Level 5 . | . . . . . . . . . . . . . . High Security . | . . . . . . . . . . . . . . Max Security . | . . . . . . . . . . . . . . Squads Dispatched 30 | . 1 . 4 1 15 1 2 . . . . . 6 Investigation 6 | . . . 1 1 3 . . . . . . . 1 Extermination 8 | . . . . . 5 . 1 . . . . . 2 Reinforcement 13 | . 1 . 3 . 6 1 . . . . . . 2 Assault 1 | . . . . . 1 . . . . . . . . Garrison 2 | . . . . . . . 1 . . . . . 1 Intercept . | . . . . . . . . . . . . . . Construction Impeded 3 | . . . 1 . 1 . . . . . . . 1 Haulers Reinforced 1 | . . . . . . 1 . . . . . . . Active Scanning Responses . | . . . . . . . . . . . . . . Cargo Convoy Interrupts . | . . . . . . . . . . . . . . Stealth | -11 -10 -10 -9 -8 -7 -6 -5 -4 -4 -4 -4 -3 -3 --------- Run | Scr Mat Min Mat Mat Fac Fac Fac Fac Upp Upp War Pro Res Distress Signals 16 | . 3 . 1 1 2 . . 2 . . 1 . 6 Communications Jammed . | . . . . . . . . . . . . . . Distress Signals . | . . . . . . . . . . . . . . Times Spotted 248 | . 11 5 24 17 51 5 4 8 13 9 49 20 32 Peak Tracking Total 11 | . 7 3 11 7 6 3 3 3 5 4 11 4 10 Tactical Retreats 20 | . 1 . 3 1 1 2 . 1 2 1 3 2 3 Traps | -11 -10 -10 -9 -8 -7 -6 -5 -4 -4 -4 -4 -3 -3 ------- Run | Scr Mat Min Mat Mat Fac Fac Fac Fac Upp Upp War Pro Res Traps Triggered 5 | . . . 1 1 1 . . 1 . . . . 1 Indirectly 2 | . . . . . . . . 1 . . . . 1 Trap Hack Attempts . | . . . . . . . . . . . . . . Triggered . | . . . . . . . . . . . . . . Disarmed . | . . . . . . . . . . . . . . Reprogrammed . | . . . . . . . . . . . . . . Reused 2 | . . . . . . . . . . . 2 . . Traps Extracted 4 | . . . . . . . . . . . 4 . . Installed 4 | . . . . . . . . . . . 4 . . Triggered 12 | . . . . . . . . . 1 1 9 . 1 Machines | -11 -10 -10 -9 -8 -7 -6 -5 -4 -4 -4 -4 -3 -3 ---------- Run | Scr Mat Min Mat Mat Fac Fac Fac Fac Upp Upp War Pro Res Machines Disabled 20 | . . . 1 1 7 . . 9 . . . 1 1 Max in Single Turn 8 | . . . 1 1 2 . . 8 . . . 1 1 Garrison Access 1 | . . . . . . . 1 . . . . . . Machines Sabotaged . | . . . . . . . . . . . . . . Garrisons Compromised . | . . . . . . . . . . . . . . Overloaded Fab Kills . | . . . . . . . . . . . . . . Fab Network Shutdowns . | . . . . . . . . . . . . . . Hacking | -11 -10 -10 -9 -8 -7 -6 -5 -4 -4 -4 -4 -3 -3 --------- Run | Scr Mat Min Mat Mat Fac Fac Fac Fac Upp Upp War Pro Res Machines Accessed 31 | . 2 1 3 3 8 1 5 . . . 1 . 7 Terminals 19 | . 2 . 3 2 4 . 4 . . . . . 4 Fabricators 3 | . . . . . 2 . . . . . . . 1 Repair Stations 2 | . . . . . . 1 . . . . . . 1 Recycling Units 2 | . . . . 1 1 . . . . . . . . Scanalyzers . | . . . . . . . . . . . . . . Garrison Access 3 | . . . . . 1 . 1 . . . . . 1 Total Hacks 76 | . 7 1 8 7 20 3 10 . . . 1 . 19 Successful 37 | . 3 1 4 2 7 3 4 . . . 1 . 12 Failed 39 | . 4 . 4 5 13 . 6 . . . . . 7 Catastrophic 9 | . . . 1 . 6 . . . . . . . 2 Database Lockouts . | . . . . . . . . . . . . . . Manual 42 | . 5 . 8 5 9 . 7 . . . 1 1 6 Terminals 48 | . 7 . 8 5 12 . 7 . . . . . 9 Fabricators 5 | . . . . . 4 . . . . . . . 1 Repair Stations 10 | . . . . . . 3 . . . . . . 7 Recycling Units 4 | . . . . 2 2 . . . . . . . . Scanalyzers . | . . . . . . . . . . . . . . Garrison Access 7 | . . . . . 2 . 3 . . . . . 2 Terminal Hacks 10 | . 1 1 2 . 2 . . . . . 1 . 3 Open Door 2 | . . 1 . . . . . . . . 1 . . Branch Access Points 1 | . . . . . . . . . . . . . 1 Alert Level 1 | . . . . . . . . . . . . . 1 Unreport Threat 4 | . . . 2 . 2 . . . . . . . . Recall Extermination 1 | . . . . . . . . . . . . . 1 Zone Layout 1 | . 1 . . . . . . . . . . . . Fabricator Hacks . | . . . . . . . . . . . . . . Repair Station Hacks 8 | . . . . . . 3 . . . . . . 5 Scan Component 4 | . . . . . . 2 . . . . . . 2 Repair 3 | . . . . . . 1 . . . . . . 2 Refit 1 | . . . . . . . . . . . . . 1 Recycling Unit Hacks 3 | . . . . 1 2 . . . . . . . . Process 1 | . . . . . 1 . . . . . . . . Retrieve Matter 2 | . . . . 1 1 . . . . . . . . Scanalyzer . | . . . . . . . . . . . . . . Garrison Access Hacks 1 | . . . . . . . 1 . . . . . . Seal Access 1 | . . . . . . . 1 . . . . . . Unauthorized Hacks 15 | . 2 . 2 1 3 . 3 . . . . . 4 Terminals 14 | . 2 . 2 1 3 . 3 . . . . . 3 Botnet 14 | . 2 . 2 1 3 . 3 . . . . . 3 Fabricators . | . . . . . . . . . . . . . . Repair Stations 1 | . . . . . . . . . . . . . 1 Mechanics 1 | . . . . . . . . . . . . . 1 Recycling Units . | . . . . . . . . . . . . . . Scanalyzers . | . . . . . . . . . . . . . . Garrison Access . | . . . . . . . . . . . . . . Data Cores Recovered . | . . . . . . . . . . . . . . Used . | . . . . . . . . . . . . . . Hacking Detections 27 | . 2 . 3 3 7 . 5 . . . . . 7 Full Trace Events 3 | . . . . . 3 . . . . . . . . Feedback Events . | . . . . . . . . . . . . . . Feedback Blocked . | . . . . . . . . . . . . . . Robot Schematics Acquired . | . . . . . . . . . . . . . . Robots Built . | . . . . . . . . . . . . . . Matter . | . . . . . . . . . . . . . . Time . | . . . . . . . . . . . . . . Total Robot Build Rating . | . . . . . . . . . . . . . . Part Schematics Acquired . | . . . . . . . . . . . . . . Parts Built . | . . . . . . . . . . . . . . Matter . | . . . . . . . . . . . . . . Time . | . . . . . . . . . . . . . . Total Part Build Rating . | . . . . . . . . . . . . . . Parts Repaired 3 | . . . . . . 1 . . . . . . 2 Time 194 | . . . . . . 70 . . . . . . 124 Parts Recycled . | . . . . . . . . . . . . . . Recycled Matter 6 | . . . . . 6 . . . . . . . . Retrieved Matter 6 | . . . . . 6 . . . . . . . . Retrieved Components . | . . . . . . . . . . . . . . Parts Scanalyzed . | . . . . . . . . . . . . . . Part Schematics Acquired . | . . . . . . . . . . . . . . Parts Damaged . | . . . . . . . . . . . . . . Bothacking | -11 -10 -10 -9 -8 -7 -6 -5 -4 -4 -4 -4 -3 -3 ------------ Run | Scr Mat Min Mat Mat Fac Fac Fac Fac Upp Upp War Pro Res Used RIF Installer . | . . . . . . . . . . . . . . Robots Hacked . | . . . . . . . . . . . . . . Non-combat . | . . . . . . . . . . . . . . Combat . | . . . . . . . . . . . . . . Robot Hacks Applied . | . . . . . . . . . . . . . . Relay Couplers Released . | . . . . . . . . . . . . . . Robots Rewired 4 | . . . . . . . . . . . 4 . . Allies Hacked . | . . . . . . . . . . . . . . Hacks Repelled . | . . . . . . . . . . . . . . Allies | -11 -10 -10 -9 -8 -7 -6 -5 -4 -4 -4 -4 -3 -3 -------- Run | Scr Mat Min Mat Mat Fac Fac Fac Fac Upp Upp War Pro Res Total Allies 7 | . . . . . . . . . . . 4 . 3 Largest Group 4 | . . . . . . . . . . . 4 . 3 Highest-Rated Group 211 | . . . . . . . . . . . 211 . 138 Highest-Rated Ally 56 | . . . . . . . . . . . 56 . 46 Total Orders . | . . . . . . . . . . . . . . Ally Attacks 49 | . . . . . . . . . . . 24 . 25 Total Damage 1740 | . . . . . . . . . . . 1051 . 689 Kills 8 | . . . . . . . . . . . 6 . 2 Allies Corrupted . | . . . . . . . . . . . . . . Allies Melted . | . . . . . . . . . . . . . . Intel | -11 -10 -10 -9 -8 -7 -6 -5 -4 -4 -4 -4 -3 -3 ------- Run | Scr Mat Min Mat Mat Fac Fac Fac Fac Upp Upp War Pro Res Robot Analysis Total . | . . . . . . . . . . . . . . Derelict Logs Recovered 4 | . . 1 . . . . . . 1 2 . . . Drone Launches . | . . . . . . . . . . . . . . Drone Recoveries . | . . . . . . . . . . . . . . Exploration | -11 -10 -10 -9 -8 -7 -6 -5 -4 -4 -4 -4 -3 -3 ------------- Run | Scr Mat Min Mat Mat Fac Fac Fac Fac Upp Upp War Pro Res Turns Passed 10367 | 73 222 421 718 549 2083 327 673 417 630 624 1092 905 1633 Spaces Moved 5487 | 43 101 287 333 243 1142 153 429 159 414 330 652 419 782 Core 11 | 8 . . . . . . . . . . . . 3 Treads 812 | . . . 71 243 498 . . . . . . . . Legs 4499 | 35 101 287 262 . 479 153 429 159 414 330 652 419 779 Wheels 165 | . . . . . 165 . . . . . . . . Hover . | . . . . . . . . . . . . . . Flight . | . . . . . . . . . . . . . . Fastest Speed 50 | 50 120 120 120 156 122 125 125 125 125 122 117 110 50 Average Speed 139 | 112 120 120 175 156 145 125 125 165 125 170 131 149 123 Slowest Speed 280 | 200 120 200 280 160 280 125 125 205 125 203 205 280 200 Overloaded Moves . | . . . . . . . . . . . . . . Propulsion Burnouts . | . . . . . . . . . . . . . . Robots Hopped . | . . . . . . . . . . . . . . Cave-ins Triggered . | . . . . . . . . . . . . . . Exploration Rate (%) 37 | 5 35 61 41 25 45 6 11 4 68 59 89 53 16 Regions Visited 13 Branch Regions 5 Pre-discovered Areas 2 | . . 1 . . . . . . . 1 . . . Known Exits Taken 4 | . . . . . . . . . 1 1 1 1 . Unknown Exits Taken 9 | 1 1 1 1 1 1 1 1 1 . . . . . Scrap Searched 8 | . . . . . . . . . 2 3 . 3 . Spaces Dug 42 | . . . 9 . . . 4 4 . . . . 25 Terrain Destroyed 322 | . . . 13 3 93 . 4 71 20 6 16 61 35 Melee 33 | . . . . . . . 4 4 . . . . 25 Projectile 102 | . . . 2 3 . . . 1 3 6 16 61 10 AOE 187 | . . . 11 . 93 . . 66 17 . . . . Terrain Rammed . | . . . . . . . . . . . . . . Walls Destroyed . | . . . . . . . . . . . . . . Machines Disabled . | . . . . . . . . . . . . . . Actions | -11 -10 -10 -9 -8 -7 -6 -5 -4 -4 -4 -4 -3 -3 --------- Run | Scr Mat Min Mat Mat Fac Fac Fac Fac Upp Upp War Pro Res Total 7294 | 58 144 320 413 341 1428 259 538 259 468 359 817 596 1294 Wait 781 | . 1 3 15 29 82 78 67 58 13 9 1 82 343 Move 5474 | 42 100 286 332 242 1141 152 428 158 413 329 651 418 782 Hop . | . . . . . . . . . . . . . . Pick Up 90 | 6 4 4 10 4 23 2 3 1 2 2 10 3 16 Fast Attach 77 | 7 1 1 3 6 7 2 2 . 5 3 13 10 17 Attach 66 | . 2 2 4 2 12 1 3 3 7 2 6 6 16 Detach 24 | . . . 1 1 7 . 2 . 1 . 3 1 8 Swap 68 | . . 1 5 1 19 4 9 7 . . 10 4 8 Drop 84 | . 2 2 10 7 24 4 6 1 . . 15 5 8 Fire 526 | 3 34 21 33 49 113 16 13 27 27 14 66 67 43 Melee 62 | . . . . . . . 5 4 . . . . 53 Ram . | . . . . . . . . . . . . . . Kick . | . . . . . . . . . . . . . . Crush . | . . . . . . . . . . . . . . Escape Stasis . | . . . . . . . . . . . . . . Rewire 38 | . . . . . . . . . . . 38 . . Trap 4 | . . . . . . . . . . . 4 . . Miscellaneous . | . . . . . . . . . . . . . . Route ------- -11/Scrapyard -10/Materials -10/Mines -9/Materials -8/Materials -7/Factory -6/Factory -5/Factory (discovered 2 exits: [*Fac] / [*Ext]) -4/Factory -4/Upper Caves -4/Upper Caves -4/Warlord -3/Proximity Caves -3/Research (discovered 3 exits: Res / Tes x2) History --------- Turn | Location | Event 56 | -11/Scrapyard | Discovered new exit (range 15) 74 | -11/Scrapyard | Entered Materials 275 | -10/Materials | Discovered new exit (range 7) 296 | -10/Materials | Entered Mines 303 | -10/Mines | Build established: Mutant 333 | -10/Mines | Learned location of Zion (-7) 577 | -10/Mines | Assembled infested the area 607 | -10/Mines | Found the Drone Emporium 611 | -10/Mines | Found Prototype Device 650 | -10/Mines | Discovered new exit (range 7) 676 | -10/Mines | Core integrity fell below 50% 717 | -10/Mines | Entered Materials 717 | -9/Materials | Evolved 2 slots: Propulsion x2 750 | -9/Materials | Identified Thief Drone Bay 1178 | -9/Materials | Destroyed 9 combat bots 1352 | -9/Materials | Build established: Scavenger-Mutant 1402 | -9/Materials | Discovered new exit (range 9) 1435 | -9/Materials | Entered another Materials area 1435 | -8/Materials | Evolved 2 slots: Utility x2 1775 | -8/Materials | Build established: Mutant 1958 | -8/Materials | Discovered new exit (range 16) 1984 | -8/Materials | Entered Factory 1984 | -7/Factory | Evolved 2 slots: Utility x1, Weapon x1 2371 | -7/Factory | Build established: Scavenger-Tank 4024 | -7/Factory | Build established: Tank 4034 | -7/Factory | First assault squad dispatched 4057 | -7/Factory | Discovered new exit (range 8) 4067 | -7/Factory | Entered another Factory area 4067 | -6/Factory | Evolved 2 slots: Utility x2 4151 | -6/Factory | Repaired Prc. Assault Rifle 4360 | -6/Factory | Discovered new exit (range 6) 4394 | -6/Factory | Entered another Factory area 4394 | -5/Factory | Evolved 2 slots: Utility x2 4580 | -5/Factory | Garrison activated, responded to threat 4828 | -5/Factory | Discovered new exit (range 19) 4874 | -5/Factory | Build established: Scavenger-Skirmisher 4947 | -5/Factory | Found Powered Armor 5000 | -5/Factory | Discovered new exit (range 10) 5067 | -5/Factory | Entered another Factory area 5067 | -4/Factory | Evolved 2 slots: Power x1, Utility x1 5189 | -4/Factory | Discovered new exit (range 19) 5484 | -4/Factory | Entered Upper Caves 5541 | -4/Upper Caves | Spotted B-86 Titan 5679 | -4/Upper Caves | Lost 10 parts (1p2n3u4w) 6063 | -4/Upper Caves | Build established: Scavenger-Gunner 6075 | -4/Upper Caves | Learned 8 Research zone layouts 6107 | -4/Upper Caves | Discovered new exit (range 6) 6112 | -4/Upper Caves | Identified exit to Upper Caves 6114 | -4/Upper Caves | Entered another Upper Caves area 6214 | -4/Upper Caves | Learned location of Armory (-4) 6258 | -4/Upper Caves | Learned 4 Research zone layouts 6710 | -4/Upper Caves | Discovered new exit (range 20) 6722 | -4/Upper Caves | Lost 3 parts (2n1w) 6736 | -4/Upper Caves | Identified exit to Warlord 6738 | -4/Upper Caves | Entered Warlord 6828 | -4/Warlord | System corruption cleaned by Quarantine Array 6990 | -4/Warlord | Build established: Scavenger-Mutant 7061 | -4/Warlord | Received a Watcher feed algorithm from an ecstatic Tinkerer 7152 | -4/Warlord | Found Prototype Device 7152 | -4/Warlord | Identified Minesniffer Drone Bay 7229 | -4/Warlord | Visited the Vortex Lab 7239 | -4/Warlord | Found Prototype Energy Cannon 7241 | -4/Warlord | Found Prototype Energy Cannon 7243 | -4/Warlord | Found Prototype Energy Cannon 7244 | -4/Warlord | Warlord's base attacked by MAIN.C 7245 | -4/Warlord | Found Prototype Energy Cannon 7410 | -4/Warlord | Met Warlord 7465 | -4/Warlord | Identified Vortex Driver (x4) 7530 | -4/Warlord | Found Prototype Ballistic Cannon 7567 | -4/Warlord | Warlord forces counterattacked 7570 | -4/Warlord | Found Prototype Ballistic Cannon 7570 | -4/Warlord | Identified Hvy. Autocannon (x2) 7582 | -4/Warlord | Spotted Executioner 7675 | -4/Warlord | Spotted Striker 7683 | -4/Warlord | Spotted Executioner 7714 | -4/Warlord | Discovered new exit (range 14) 7735 | -4/Warlord | Lost 5 parts (1p3u1w) 7748 | -4/Warlord | Spotted Striker 7786 | -4/Warlord | Core integrity fell below 50% 7789 | -4/Warlord | Destroyed Striker 7824 | -4/Warlord | Lost 5 parts (1p2n2u) 7829 | -4/Warlord | Identified exit to Proximity Caves 7830 | -4/Warlord | Entered Proximity Caves 7835 | -3/Proximity Caves | Acquired the password to a Derelict Tinkerer's latest research 7844 | -3/Proximity Caves | Found Prototype Special Weapon 7844 | -3/Proximity Caves | Identified Molecular Deconstructor 7873 | -3/Proximity Caves | Attracted the attention of an 0b10 checkpoint 7958 | -3/Proximity Caves | Caught by Unaware searching for contraband prototypes 7981 | -3/Proximity Caves | Caught by Unaware searching for contraband prototypes 8346 | -3/Proximity Caves | Core integrity fell below 20% 8373 | -3/Proximity Caves | Lost 7 parts (1p3n2u1w) 8560 | -3/Proximity Caves | Lost 3 parts (1n2u) 8708 | -3/Proximity Caves | Discovered new exit (range 18) 8734 | -3/Proximity Caves | Identified exit to Research 8735 | -3/Proximity Caves | Entered Research 8735 | -3/Research | Evolved 2 slots: Propulsion x2 8736 | -3/Research | Identified exit to Research 8736 | -3/Research | Identified exit to Testing 8883 | -3/Research | Repaired Lgt. Antimatter Reactor 8950 | -3/Research | Repaired Myomer Leg 9265 | -3/Research | Found Prototype Launcher 9266 | -3/Research | Identified Com. Tesla Bomb Launcher 9348 | -3/Research | Build established: Derelict-Assassin 9485 | -3/Research | Found Prototype Slashing Weapon 9492 | -3/Research | Found Enh. Force Lance 9495 | -3/Research | Identified Centrium Greatsword 9998 | -3/Research | System corruption reached 10% 10030 | -3/Research | Allied Derelicts emerged from ambush trap array 10060 | -3/Research | Garrison activated, responded to threat 10091 | -3/Research | Destroyed 10 combat bots 10171 | -3/Research | Lost 17 parts (5p5n4u3w) 10205 | -3/Research | System corruption reached 30% 10325 | -3/Research | Core integrity fell below 50% 10354 | -3/Research | Core integrity fell below 20% 10368 | -3/Research | Destroyed by X-87 Electro with Compact HERF Cannon Last Messages --------------- 10357_ P-80 Master resets X-87 Electro, system corruption cleaned. 10358_ Rnf. Antimatter Reactor destroyed. 10358_ Vortex penetrates P-80 Master. 10358_ Destroyed Prototype Energy Gun. 10359_ Extracted 35 energy. 10360_ Vortex Driver implodes. 10360_ Vortex penetrates P-80 Master. 10360_ Destroyed Sml. Battery. 10360_ Destroyed Imp. Antigrav System. 10360_ K-01 Serf collects debris. 10361_ Extracted 27 energy. 10363_ U-05 Engineer builds a Wall. 10363_ K-01 Serf collects debris. 10363_ Acquired Vortex Driver. 10365_ Vortex penetrates P-80 Master. 10365_ Destroyed Lgt. Particle Reactor. 10367_ System corrupted: Vortex Driver failed to cycle. 10367_ K-01 Serf collects debris. 10368_ System corrupted: Matter fused (-10). [Achievement: I Think I Know What's Going On] Map ----- +----------------------------------------------------+ | ??????????????????????"""??"""???????????????????? | | ??????????????????????"""??"""???????????????????? | | ??????????????????????"""??"""???????????????????? | | ?????????????????????????????????????????????????? | | ?????????????????????????????????????????????????? | | ??????????????????????"""????????????????????????? | | ??????????????????????"""????????????????????????? | | ??????????????????????"""??"?"???????????????????? | | ???????????????????????????"T"???????????????????? | | ???????????????????????????"""???????????????????? | | ?????????????????????????????????????????????????? | | ?????????????????????????????????????????????????? | | ?????????????????????????????????????????????????? | | ?????????????????????????????????????????????????? | | ??????????????????H??????????????????????????????? | | ?????????????????????????????????????????????????? | | ???????????????????????????????##??????##????????? | | ???????????????????????????????##########????????? | | ????????????????# #???###?????# #?????????? | | ????????????????# #???# #?##??# | #?????????? | | ????????????????# #??## ## ???# #?????????? | | ????????????????# #??##;#;##### #?????????? | | ????????????????# #???# # #?????????? | | ????????????????# ##### #! #?????????? | | ????????????????# "" #[! #?????????? | | ????????????????# *@p %%+ ! #?????????? | | ????????????????# [%kxu% u#! ########### | | ????????????????## ######!|]] %=# !# ! # | | ?????????????????# #????#!x=! #! " # | | ?????????????????# #???########## # # | | ?????????????????# #???#"""G"""## # ! # | | ?????????????????# #####""" """######### / # | | ?????????????????# ## ##???## # | | ?????????????????# ## #?????# [! # | | ?????????????????# ## #?????# ! [ # | | ?????????????????# ## ###########+##### | | ?????????????????# ## # !%![[|!= ! | | ?????????????????# ## + %[%! *! | | ?????????????????# ## # % [ [!== | | ?????????????????# ## # %! !% | | ?????????????????# ## ##+########+##### | | ?????????????????# ## ## ! # | | ?????????????????# ## ## = # | | ????????????????????# ## + | | ????????????????????############### = # | | ??????????????????????????????????# #! | | ??????????????????????????????????# !#! | | ??????????????????????????????????###############! | | ????????????????????????????????????## ## | | ?????????????????????????????????????# ### | +----------------------------------------------------+ Best States ------------- Heat Dissipation 84 Energy Generation 41 Energy Capacity 405 Matter Stores 440 Matter Capacity 450 Sight Range 20 Robot Scan Range 16 Terrain Scan Density 10 Armor Coverage 825 Resistance: EM 15 Core Shielding 20 Thermal Conversion 60 Evasion (%) 60 Targeting Accuracy 8 Target Analysis 5 Recoil Reduction 4 Matter Filtering 30 Kinecelleration 40 Salvage Targeting 4 Offensive Hacking 20 Item Schematics ----------------- None Robot Schematics ------------------ None Fabricated ------------ Nothing Alien Tech Used ----------------- None Achievements -------------- I Think I Know What's Going On Challenges ------------ None Game ------ Seed CatalystSupersonicStorm Manual? 0 Play Time 01:44:18 Cumulative 121.2 hours Start 2021.08.23 @ 17:30:28 End 2021.08.26 @ 21:47:11 Sessions 3 Manual Loads 0 Difficulty Rogue Special Mode None Game No. 77 Rogue 77 Adventurer 0 Explorer 0 Win Type - Total 1 Types 1/0/0/0/0/0/0/0/0 Lore% 50 Gallery% 65 Achievement% 44 Wizard Run 0 Options --------- ASCII 0 Keyboard 1 Movement Numpad Keybinds 0 Fullscreen 1 Font 18/SmallcapsGlow Map View 76x50 Tactical HUD 1 Map Filters NONE Filters NONE Steam 1 RUN: c4520e4b-b426-46c0-9779-05ec40dd730e